fUSD/lending_fUSD_20240413
["ID","MTS","AMOUNT","RATE_DAILY","PERIOD"]
[322361473,1712967043926,-273.24,0.00036908,30]
[322361474,1712967043937,-238.0,0.00036908,30]
[322361475,1712967043947,-14376.35615351,0.00036908,3]
[322361476,1712967043959,-404.876,0.00036908,30]
[322361477,1712967043968,-4000.0,0.00036908,3]
[322361478,1712967043978,-270.21084133,0.00036908,120]
[322361479,1712967043988,-319.87235293,0.00036908,120]
[322361480,1712967043998,-254.91118021,0.00036908,30]
[322361481,1712967044008,-268.15226882,0.00036908,60]
[322361482,1712967044018,-1019.99999985,0.00036908,30]
[322361483,1712967044027,-190.46852552,0.00036908,30]
[322361484,1712967044036,-3482.99999999,0.00036908,2]
[322361485,1712967044046,-249.47590299,0.00036908,30]
[322361486,1712967044055,-2155.49884087,0.00036908,30]
[322361487,1712967044065,-36670.72836694,0.00036908,30]
[322361488,1712967044074,-18979.65433798,0.00036908,3]
[322361489,1712967044084,-3841.58338956,0.00036908,3]
[322361490,1712967044093,-154.57095891,0.00036908,120]
[322361491,1712967044103,-191.0,0.00036908,30]
[322361492,1712967044112,-154.05041663,0.00036908,19]
[322361493,1712967044122,-154.05041663,0.00036908,19]
[322361494,1712967044131,-150.0,0.00036951,120]
[322361495,1712967044140,-150.0,0.00036962,120]
[322361496,1712967044150,-1100.0,0.00037,3]
[322361497,1712967044159,-150.0,0.00037,2]
[322361498,1712967044168,-157.42754868,0.00037013,7]
[322361499,1712967044178,-263.98982857,0.00037018,7]
[322361500,1712967044188,-162.28190367,0.000371,7]
[322361501,1712967044197,-263.98982857,0.00037136,7]
[322361502,1712967044210,-1000.0,0.00037219,2]
[322361503,1712967044219,-254.76059838,0.00037304,7]
[322361504,1712967044230,-753.0,0.00037627,5]
[322361505,1712967044239,-153.90252396,0.00037746,7]
[322361506,1712967044248,-156.14888895,0.00037778,7]
[322361507,1712967044258,-154.33,0.000378,3]
[322361508,1712967044267,-154.33,0.000378,3]
[322361509,1712967044277,-154.33,0.000378,3]
[322361510,1712967044287,-154.33,0.000378,3]
[322361511,1712967044297,-154.33,0.000378,3]
[322361512,1712967044306,-154.33,0.000378,3]
[322361513,1712967044315,-154.33,0.000378,3]
[322361514,1712967044325,-154.33,0.000378,3]
[322361515,1712967044334,-1868.94,0.000378,3]
[322361516,1712967044343,-1868.94,0.000378,3]
[322361517,1712967044353,-1868.94,0.000378,3]
[322361518,1712967044362,-1868.94,0.000378,3]
[322361519,1712967044371,-1868.94,0.000378,3]
[322361520,1712967044381,-1868.94,0.000378,3]
[322361521,1712967044390,-1868.94,0.000378,3]
[322361522,1712967044399,-1868.94,0.000378,3]
[322361523,1712967044409,-1868.94,0.000378,3]
[322361524,1712967044418,-1868.94,0.000378,3]
[322361525,1712967044427,-1868.94,0.000378,3]
[322361526,1712967044436,-1868.94,0.000378,3]
[322361527,1712967044446,-1868.94,0.000378,3]
[322361528,1712967044458,-1868.94,0.000378,3]
[322361529,1712967044470,-1868.94,0.000378,3]
[322361530,1712967044479,-1868.94,0.000378,3]
[322361531,1712967044488,-1868.94,0.000378,3]
[322361532,1712967044497,-1868.94,0.000378,3]
[322361533,1712967044508,-1868.94,0.000378,3]
[322361534,1712967044517,-1868.94,0.000378,3]
[322361535,1712967044527,-521.0,0.00037808,7]
[322361536,1712967044537,-181.71,0.00037824,2]
[322361537,1712967044546,-602.22,0.00038027,15]
[322361538,1712967044556,-195.73250747,0.00038169,7]
[322361539,1712967044565,-157.42754871,0.00038189,7]
[322361540,1712967044574,-165.71508448,0.00038213,7]
[322361541,1712967044584,-254.76059838,0.00038287,7]
[322361542,1712967044593,-153.90252396,0.0003832,7]
[322361543,1712967044604,-156.43229334,0.00038398,7]
[322361544,1712967044612,-413.84442539,0.0003842,30]
[322361545,1712967044622,-195.73250747,0.00038423,7]
[322361546,1712967044632,-161.73578536,0.00038575,7]
[322361547,1712967044640,-999.24,0.000386,2]
[322361548,1712967044649,-578.184645,0.000386,2]
[322361549,1712967044659,-631.44,0.00038677,2]
[322361550,1712967044668,-4799.0,0.00038727,2]
[322361551,1712967044677,-1314.0,0.00038727,2]
[322361552,1712967044686,-5707.0,0.00038727,2]
[322361553,1712967044695,-37595.0,0.00038727,2]
[322361554,1712967044705,-2462.0,0.00038727,2]
[322361555,1712967044714,-266.708,0.00038727,2]
[322361556,1712967044723,-158.14981821,0.00038737,7]
[322361557,1712967044732,-1388.0,0.00038737,2]
[322361558,1712967044741,-2287.0,0.00038737,2]
[322361559,1712967044750,-967.0,0.00038737,2]
[322361560,1712967044894,-283.668,0.00038737,2]
[322361561,1712967044904,-540.0,0.00038737,2]
[322361562,1712967044913,-150.0,0.00038737,2]
[322361563,1712967044923,-1228.0,0.00038737,2]
[322361564,1712967044933,-280.0,0.00038737,2]
[322361565,1712967044942,-1947.0,0.00038737,2]
[322361566,1712967044951,-606.0,0.00038737,2]
[322361567,1712967044961,-434.0,0.00038737,2]
[322361568,1712967044970,-807.0,0.00038737,2]
[322361569,1712967044987,-398.0,0.00038737,2]
[322361570,1712967045001,-150.0,0.00038737,2]
[322361571,1712967045011,-1140.0,0.00038737,2]
[322361572,1712967045020,-3037.0,0.00038737,2]
[322361573,1712967045030,-1471.0,0.00038737,2]
[322361574,1712967045039,-1634.0,0.00038737,2]
[322361575,1712967045049,-2436.0,0.00038737,2]
[322361576,1712967045060,-442.0,0.00038737,2]
[322361577,1712967045070,-214.0,0.00038737,2]
[322361578,1712967045079,-354.0,0.00038737,2]
[322361579,1712967045090,-178.041309,0.00038748,38]
[322361580,1712967045100,-152.0,0.00038759,5]
[322361581,1712967045109,-1195.60922235,0.00038765,2]
[322361582,1712967045119,-500.88,0.000388,7]
[322361583,1712967045129,-1415.98617908,0.00038804,2]
[322361584,1712967045139,-165.71508448,0.00038858,7]
[322361585,1712967045149,-4072.29619757,0.000389,15]
[322361586,1712967045158,-35712.07822185,0.000389,120]
[322361587,1712967045168,-156.14888895,0.00038926,7]
[322361588,1712967045177,-122919.92607118,0.0003897,2]
[322361589,1712967045187,-1150.0,0.00039,3]
[322361590,1712967045197,-1022.306478,0.00039,30]
[322361591,1712967045206,-1030.21865964,0.00039,2]
[322361592,1712967045216,-903.21839451,0.00039,4]
[322361593,1712967045226,-1159.00766982,0.00039,2]
[322361594,1712967045235,-47748.46859516,0.00039,30]
[322361595,1712967045245,-154.8586283,0.00039025,7]
[322361596,1712967045255,-151.26482744,0.00039028,3]
[322361597,1712967045264,-521.0,0.00039041,7]
[322361598,1712967045274,-308.03884845,0.00039063,7]
[322361599,1712967045283,-973.93,0.000391,7]
[322361600,1712967045294,-628.041309,0.00039148,38]
[322361601,1712967045303,-200.0,0.00039164,15]
[322361602,1712967045313,-150.0,0.00039429,120]
[322361603,1712967045323,-628.041309,0.00039448,39]
[322361604,1712967045332,-152.17,0.00039452,2]
[322361605,1712967045342,-153.90252396,0.00039464,7]
[322361606,1712967045351,-158846.63357889,0.000395,30]
[322361607,1712967045361,-308.03884845,0.00039516,7]
[322361608,1712967045370,-152.43488084,0.0003956,5]
[322361609,1712967045379,-164.91,0.00039574,2]
[322361610,1712967045389,-195.73250747,0.00039654,7]
[322361611,1712967045398,-154.8586283,0.00039678,7]
[322361612,1712967045408,-195.73250747,0.00039714,7]
[322361613,1712967045417,-628.041309,0.00039748,39]
[322361614,1712967045426,-308.03884845,0.00039793,7]
[322361615,1712967045436,-161.73578536,0.00039801,7]
[322361616,1712967045445,-165.71508448,0.00039844,7]
[322361617,1712967045458,-263.98982857,0.00039879,7]
[322361618,1712967045468,-540.5238298,0.000399,48]
[322361619,1712967045478,-540.52382974,0.000399,48]
[322361620,1712967045488,-540.52382974,0.000399,48]
[322361621,1712967045500,-540.52382974,0.000399,48]
[322361622,1712967045510,-540.52382974,0.000399,48]
[322361623,1712967045520,-540.52382974,0.000399,48]
[322361624,1712967045529,-540.52382974,0.000399,48]
[322361625,1712967045539,-263.98982857,0.00039981,7]
[322361626,1712967045549,-156.43229334,0.00039986,7]
[322361627,1712967045558,-27119.35776358,0.0004,4]
[322361628,1712967045567,-959.05932493,0.0004,30]
[322361629,1712967045577,-193.0576741,0.0004,2]
[322361630,1712967045586,-2465.34975905,0.0004,5]
[322361631,1712967045595,-266.37502491,0.0004,30]
[322361632,1712967045604,-22126.04814087,0.0004,4]
[322361633,1712967045613,-1399.20259715,0.0004,30]
[322361634,1712967045623,-210.37183016,0.0004,120]
[322361635,1712967045633,-300.0,0.0004,7]
[322361637,1712967045642,-6512.28778663,0.0004,30]
[322361640,1712967045653,-3613.30020337,0.0004,10]
[322361641,1712967045662,-82901.0,0.0004,10]
[322361642,1712967045671,-145226.16663843,0.0004,2]
[322361643,1712967045681,-2221.84004179,0.0004,4]
[322361644,1712967045691,-400.162239,0.0004,2]
[322361646,1712967045700,-208.82472284,0.0004,30]
[322361647,1712967045710,-2457.71931294,0.0004,2]
[322361648,1712967045720,-369.56829489,0.0004,2]
[322361649,1712967045730,-254.76059838,0.00040033,30]
[322361650,1712967045739,-628.041309,0.00040148,39]
[322361651,1712967045749,-540.52382974,0.00040251,49]
[322361652,1712967045759,-521.0,0.00040274,7]
[322361653,1712967045769,-308.03884845,0.00040387,30]
[322361654,1712967045778,-628.041309,0.00040448,40]
[322361655,1712967045799,-195.73250747,0.00040566,30]
[322361656,1712967045824,-1000.0,0.00040603,2]
[322361657,1712967045842,-162.28190367,0.00040687,30]
[322361658,1712967045864,-308.03884845,0.00040705,30]
[322361659,1712967045881,-628.041309,0.00040748,40]
[322361660,1712967045901,-602.22,0.00040767,15]
[322361661,1712967045919,-263.98982857,0.00040806,30]
[322361662,1712967045934,-154.8586283,0.00040878,30]
[322361663,1712967045955,-263.98982857,0.00040899,30]
[322361664,1712967045975,-6169.62810235,0.00040927,30]
[322361665,1712967045994,-631.44,0.00040941,2]
[322361666,1712967046014,-263.98982857,0.00040952,30]
[322361667,1712967046031,-225585.91148791,0.00040997,2]
[322361668,1712967046044,-1200.0,0.00041,3]
[322361669,1712967046061,-725.1431069,0.00041,2]
[322361670,1712967046078,-195.73250747,0.00041043,30]
[322361671,1712967046091,-1000.0,0.00041095,2]
[322361672,1712967046108,-157.0,0.00041096,2]
[322361673,1712967046123,-263.98982857,0.00041098,30]
[322361674,1712967046138,-3412.0,0.000411,2]
[322361675,1712967046154,-166.75619801,0.00041145,30]
[322361676,1712967046169,-628.041309,0.00041148,40]
[322361677,1712967046185,-154.8586283,0.00041179,30]
[322361678,1712967046200,-254.76059838,0.00041334,30]
[322361679,1712967046219,-263.98982857,0.00041378,30]
[322361680,1712967046234,-500.88,0.000414,7]
[322361681,1712967046248,-165.71508448,0.00041415,30]
[322361682,1712967046263,-161.73578536,0.00041435,30]
[322361683,1712967046278,-628.041309,0.00041448,41]
[322361684,1712967046293,-521.0,0.00041507,7]
[322361685,1712967046307,-308.03884845,0.00041625,30]
[322361686,1712967046322,-263.98982857,0.00041676,30]
[322361687,1712967046336,-165.71508448,0.00041677,30]
[322361688,1712967046351,-500.0,0.00041699,2]
[322361689,1712967046366,-500.0,0.00041699,2]
[322361690,1712967046380,-500.0,0.00041699,2]
[322361691,1712967046394,-500.0,0.00041699,2]
[322361692,1712967046409,-500.0,0.00041699,2]
[322361693,1712967046424,-154.33,0.000417,4]
[322361694,1712967046438,-154.33,0.000417,4]
[322361695,1712967046451,-154.33,0.000417,4]
[322361696,1712967046469,-154.33,0.000417,4]
[322361697,1712967046483,-154.33,0.000417,4]
[322361698,1712967046497,-154.33,0.000417,4]
[322361699,1712967046512,-154.33,0.000417,4]
[322361700,1712967046527,-154.33,0.000417,4]
[322361701,1712967046542,-1868.94,0.000417,4]
[322361702,1712967046556,-1868.94,0.000417,4]
[322361703,1712967046570,-1868.94,0.000417,4]
[322361704,1712967046585,-1868.94,0.000417,4]
[322361705,1712967046601,-1868.94,0.000417,4]
[322361706,1712967046615,-1868.94,0.000417,4]
[322361707,1712967046630,-1868.94,0.000417,4]
[322361708,1712967046645,-1868.94,0.000417,4]
[322361709,1712967046659,-1868.94,0.000417,4]
[322361710,1712967046673,-1868.94,0.000417,4]
[322361711,1712967046688,-1868.94,0.000417,4]
[322361712,1712967046703,-1868.94,0.000417,4]
[322361713,1712967046717,-1868.94,0.000417,4]
[322361714,1712967046732,-1868.94,0.000417,4]
[322361715,1712967046747,-1868.94,0.000417,4]
[322361716,1712967046761,-1868.94,0.000417,4]
[322361717,1712967046776,-1868.94,0.000417,4]
[322361718,1712967046790,-1868.94,0.000417,4]
[322361719,1712967046804,-1868.94,0.000417,4]
[322361720,1712967046819,-1868.94,0.000417,4]
[322361721,1712967046834,-3688.527,0.00041727,2]
[322361722,1712967046848,-4719.469,0.00041727,2]
[322361723,1712967046863,-5316.07746593,0.00041735,2]
[322361724,1712967046878,-1228.0,0.00041737,2]
[322361725,1712967046892,-1180.344,0.00041737,2]
[322361726,1712967046906,-384.055,0.00041737,2]
[322361727,1712967046921,-1471.0,0.00041737,2]
[322361728,1712967046935,-214.0,0.00041737,2]
[322361729,1712967046949,-354.0,0.00041737,2]
[322361730,1712967046972,-628.041309,0.00041748,41]
[322361731,1712967046992,-973.93,0.000418,7]
[322361732,1712967047010,-160.7322669,0.00041831,30]
[322361733,1712967047028,-254.76059838,0.0004186,30]
[322361734,1712967047046,-162.97508017,0.00041947,30]
[322361735,1712967047062,-318.18279784,0.00042,2]
[322361736,1712967047080,-8774.75409355,0.00042,2]
[322361737,1712967047096,-497.70056021,0.00042,120]
[322361738,1712967047112,-150.41474736,0.00042,30]
[322361739,1712967047128,-2951.32,0.00042,2]
[322361740,1712967047145,-1304.42589477,0.0004201,2]
[322361741,1712967047159,-165.71508448,0.00042066,30]
[322361742,1712967047169,-165.71508448,0.0004207,30]
[322361743,1712967047178,-157.37244982,0.00042076,30]
[322361744,1712967047188,-195.73250747,0.00042081,30]
[322361745,1712967047370,-254.76059838,0.00042105,30]
[322361746,1712967047464,-152.0,0.00042117,6]
[322361747,1712967047476,-628.041309,0.00042148,41]
[322361748,1712967047485,-412.01,0.00042175,2]
[322361749,1712967047495,-907.52,0.00042175,2]
[322361750,1712967047505,-907.52,0.00042175,2]
[322361751,1712967047514,-412.01,0.00042175,2]
[322361752,1712967047524,-907.52,0.00042175,2]
[322361753,1712967047534,-412.01,0.00042175,2]
[322361754,1712967047544,-907.52,0.00042175,2]
[322361755,1712967047553,-412.01,0.00042175,2]
[322361756,1712967047562,-907.52,0.00042175,2]
[322361757,1712967047572,-412.01,0.00042175,2]
[322361758,1712967047581,-907.52,0.00042175,2]
[322361759,1712967047590,-412.01,0.00042175,2]
[322361760,1712967047599,-907.52,0.00042175,2]
[322361761,1712967047608,-412.01,0.00042175,2]
[322361762,1712967047618,-1000.0,0.000423,7]
[322361763,1712967047627,-1000.0,0.000423,7]
[322361764,1712967047636,-308.03884845,0.00042305,30]
[322361765,1712967047645,-418.16,0.00042312,2]
[322361766,1712967047654,-198.8,0.00042312,2]
[322361767,1712967047664,-150.0,0.00042312,2]
[322361768,1712967047673,-157.72,0.00042312,2]
[322361769,1712967047683,-162.36,0.00042312,2]
[322361770,1712967047692,-473.05,0.00042312,2]
[322361771,1712967047702,-214.4,0.00042312,2]
[322361772,1712967047713,-150.0,0.00042312,2]
[322361773,1712967047722,-520.86,0.00042312,2]
[322361774,1712967047731,-418.16,0.00042312,2]
[322361775,1712967047740,-150.0,0.00042312,2]
[322361776,1712967047749,-349.62,0.00042312,2]
[322361777,1712967047758,-150.0,0.00042312,2]
[322361778,1712967047767,-162.36,0.00042312,2]
[322361779,1712967047776,-150.0,0.00042312,2]
[322361780,1712967047786,-150.0,0.00042312,2]
[322361781,1712967047795,-520.86,0.00042312,2]
[322361782,1712967047804,-150.0,0.00042312,2]
[322361783,1712967047814,-520.86,0.00042312,2]
[322361784,1712967047824,-150.0,0.00042312,2]
[322361785,1712967047833,-150.0,0.00042312,2]
[322361786,1712967047842,-150.0,0.00042312,2]
[322361787,1712967047851,-418.16,0.00042312,2]
[322361788,1712967047860,-349.62,0.00042312,2]
[322361789,1712967047869,-150.0,0.00042312,2]
[322361790,1712967047878,-162.36,0.00042312,2]
[322361791,1712967047887,-150.0,0.00042312,2]
[322361792,1712967047896,-418.16,0.00042312,2]
[322361793,1712967047906,-515.34,0.00042312,2]
[322361794,1712967047919,-150.0,0.00042312,2]
[322361795,1712967047928,-150.0,0.00042312,2]
[322361796,1712967047938,-349.62,0.00042312,2]
[322361797,1712967047947,-162.36,0.00042312,2]
[322361798,1712967047958,-150.0,0.00042312,2]
[322361799,1712967047967,-150.0,0.00042312,2]
[322361800,1712967047977,-418.16,0.00042312,2]
[322361801,1712967047985,-150.0,0.00042312,2]
[322361802,1712967047995,-162.36,0.00042312,2]
[322361803,1712967048004,-349.62,0.00042312,2]
[322361804,1712967048014,-150.0,0.00042312,2]
[322361805,1712967048024,-150.0,0.00042312,2]
[322361806,1712967048034,-418.16,0.00042312,2]
[322361807,1712967048043,-150.0,0.00042312,2]
[322361808,1712967048053,-162.36,0.00042312,2]
[322361809,1712967048063,-150.0,0.00042312,2]
[322361810,1712967048072,-418.16,0.00042312,2]
[322361811,1712967048081,-150.0,0.00042312,2]
[322361812,1712967048090,-150.0,0.00042312,2]
[322361813,1712967048099,-162.36,0.00042312,2]
[322361814,1712967048109,-628.041309,0.00042448,42]
[322361815,1712967048119,-1033.57025315,0.00042465,2]
[322361816,1712967048128,-156.43229334,0.0004247,30]
[322361817,1712967048138,-1415.98617908,0.000425,4]
[322361818,1712967048147,-254.76059838,0.00042534,30]
[322361819,1712967048158,-300.8,0.00042586,2]
[322361820,1712967048167,-152.43488084,0.0004267,16]
[322361821,1712967048177,-521.0,0.00042739,7]
[322361822,1712967048186,-152.17,0.0004274,2]
[322361823,1712967048195,-628.041309,0.00042748,42]
[322361824,1712967048206,-962.68936662,0.0004289,10]
[322361825,1712967048216,-1423.857659,0.000429,39]
[322361826,1712967048225,-153.34610378,0.00042928,30]
[322361827,1712967048234,-153.34610378,0.00042949,30]
[322361828,1712967048244,-263.98982857,0.00042975,30]
[322361829,1712967048253,-1250.0,0.00043,3]
[322361830,1712967048263,-16267.19686496,0.00043,5]
[322361831,1712967048273,-37503.75747912,0.00043,10]
[322361832,1712967048282,-154.8586283,0.00043009,30]
[322361833,1712967048292,-540.52382974,0.00043016,59]
[322361834,1712967048302,-163.4681833,0.00043046,30]
[322361835,1712967048311,-150.0,0.00043134,2]
[322361836,1712967048321,-150.0,0.00043134,2]
[322361837,1712967048331,-150.0,0.00043134,2]
[322361838,1712967048340,-150.0,0.00043134,2]
[322361839,1712967048350,-150.0,0.00043134,2]
[322361840,1712967048359,-150.0,0.00043134,2]
[322361841,1712967048369,-150.0,0.00043134,2]
[322361842,1712967048378,-150.0,0.00043134,2]
[322361843,1712967048387,-150.0,0.00043134,2]
[322361844,1712967048396,-150.0,0.00043134,2]
[322361845,1712967048405,-150.0,0.00043134,2]
[322361846,1712967048414,-150.0,0.00043134,2]
[322361847,1712967048424,-150.0,0.00043134,2]
[322361848,1712967048433,-150.0,0.00043134,2]
[322361849,1712967048442,-150.0,0.00043134,2]
[322361850,1712967048452,-150.0,0.00043134,2]
[322361851,1712967048465,-418.16,0.00043134,2]
[322361852,1712967048474,-150.0,0.00043134,2]
[322361853,1712967048485,-418.16,0.00043134,2]
[322361854,1712967048494,-150.0,0.00043134,2]
[322361855,1712967048505,-150.0,0.00043134,2]
[322361856,1712967048515,-150.0,0.00043134,2]
[322361857,1712967048524,-150.0,0.00043134,2]
[322361858,1712967048533,-150.0,0.00043134,2]
[322361859,1712967048545,-418.16,0.00043134,2]
[322361860,1712967048555,-150.0,0.00043134,2]
[322361861,1712967048564,-907.52,0.00043134,2]
[322361862,1712967048574,-150.0,0.00043134,2]
[322361863,1712967048583,-150.0,0.00043134,2]
[322361864,1712967048593,-331.77,0.00043134,2]
[322361865,1712967048602,-418.16,0.00043134,2]
[322361866,1712967048611,-907.52,0.00043134,2]
[322361867,1712967048620,-150.0,0.00043134,2]
[322361868,1712967048631,-150.0,0.00043134,2]
[322361869,1712967048641,-404.73,0.00043134,2]
[322361870,1712967048650,-418.16,0.00043134,2]
[322361871,1712967048659,-150.0,0.00043134,2]
[322361872,1712967048668,-1237.97,0.00043134,2]
[322361873,1712967048677,-418.16,0.00043134,2]
[322361874,1712967048686,-150.0,0.00043134,2]
[322361875,1712967048696,-418.16,0.00043134,2]
[322361876,1712967048706,-294.8,0.00043134,2]
[322361877,1712967048715,-412.01,0.00043134,2]
[322361878,1712967048725,-412.01,0.00043134,2]
[322361879,1712967048735,-160.49,0.00043134,2]
[322361880,1712967048744,-628.041309,0.00043148,42]
[322361881,1712967048754,-263.98982857,0.00043166,30]
[322361882,1712967048764,-631.44,0.00043205,2]
[322361883,1712967048773,-153.90252396,0.00043268,30]
[322361884,1712967048782,-1541.83524312,0.000433,2]
[322361885,1712967048791,-153.19445825,0.0004339,30]
[322361886,1712967048802,-628.041309,0.00043448,43]
[322361887,1712967048811,-1000.0,0.000435,7]
[322361888,1712967048820,-602.22,0.00043507,15]
[322361889,1712967048830,-165.71508448,0.00043516,30]
[322361890,1712967048839,-1000.0,0.000436,7]
[322361891,1712967048848,-154.8586283,0.00043618,30]
[322361892,1712967048858,-263.98982857,0.00043661,30]
[322361893,1712967048867,-308.03884845,0.00043693,30]
[322361894,1712967048876,-177.59700813,0.00043721,30]
[322361895,1712967048885,-628.041309,0.00043748,43]
[322361896,1712967048896,-151.0,0.00043794,2]
[322361897,1712967048905,-2352.0,0.000438,2]
[322361898,1712967048916,-500.88,0.000438,7]
[322361899,1712967048927,-195.73250747,0.00043807,30]
[322361900,1712967048937,-165.71508448,0.0004381,30]
[322361901,1712967048947,-4484.6,0.00043836,2]
[322361902,1712967048958,-1744.43,0.00043836,2]
[322361903,1712967048968,-521.0,0.00043972,7]
[322361904,1712967048977,-285.93602159,0.00044,30]
[322361905,1712967048986,-160.7322669,0.00044071,30]
[322361906,1712967048996,-973.93,0.000441,7]
[322361907,1712967049005,-153.90252396,0.0004413,30]
[322361908,1712967049015,-153.34610378,0.00044143,30]
[322361909,1712967049024,-628.041309,0.00044148,43]
[322361910,1712967049034,-1074.58458392,0.00044149,10]
[322361911,1712967049044,-165.71508448,0.00044159,30]
[322361912,1712967049053,-1428.03850904,0.00044178,2]
[322361913,1712967049062,-150.0,0.00044191,2]
[322361914,1712967049071,-254.76059838,0.00044247,30]
[322361915,1712967049080,-156.64,0.00044257,2]
[322361916,1712967049090,-165.71508448,0.00044261,30]
[322361917,1712967049099,-1609.77275,0.0004429,22]
[322361918,1712967049108,-150.0,0.00044349,2]
[322361919,1712967049117,-500.0,0.00044379,30]
[322361920,1712967049126,-628.041309,0.00044448,44]
[322361921,1712967049135,-1428.03850904,0.00044452,2]
[322361922,1712967049145,-254.76059838,0.00044453,30]
[322361923,1712967049154,-308.03884845,0.00044469,30]
[322361924,1712967049163,-254.76059838,0.00044478,30]
[322361925,1712967049173,-165.71508448,0.00044496,30]
[322361926,1712967049182,-195.73250747,0.00044508,30]
[322361927,1712967049191,-150.0,0.00044514,2]
[322361928,1712967049201,-302.0,0.0004453,4]
[322361929,1712967049212,-150.0,0.00044546,2]
[322361930,1712967049221,-195.73250747,0.00044632,30]
[322361931,1712967049230,-150.0,0.00044641,2]
[322361932,1712967049239,-1000.0,0.00044678,50]
[322361933,1712967049248,-150.0,0.00044695,120]
[322361934,1712967049258,-150.0,0.00044698,2]
[322361935,1712967049267,-150.0,0.000447,2]
[322361936,1712967049276,-150.0,0.00044717,2]
[322361937,1712967049285,-214.0,0.00044737,2]
[322361938,1712967049294,-354.0,0.00044737,2]
[322361939,1712967049303,-628.041309,0.00044748,44]
[322361940,1712967049312,-150.0,0.00044749,2]
[322361941,1712967049321,-150.0,0.00044754,2]
[322361942,1712967049331,-150.0,0.00044757,2]
[322361943,1712967049341,-150.0,0.00044771,2]
[322361944,1712967049350,-200.0,0.00044827,25]
[322361945,1712967049359,-500.0,0.00044827,30]
[322361946,1712967049369,-150.0,0.00044832,2]
[322361947,1712967049378,-150.0,0.00044851,2]
[322361948,1712967049387,-150.0,0.00044854,2]
[322361949,1712967049397,-150.0,0.00044882,2]
[322361950,1712967049406,-150.0,0.00044888,2]
[322361951,1712967049416,-150.0,0.00044892,2]
[322361952,1712967049425,-1000.0,0.000449,7]
[322361953,1712967049434,-150.0,0.00044905,2]
[322361954,1712967049443,-308.03884845,0.00044921,30]
[322361955,1712967049453,-1428.03850905,0.00044953,2]
[322361956,1712967049467,-1000.0,0.00044976,50]
[322361957,1712967049477,-195.73250747,0.00044994,30]
[322361958,1712967049486,-1300.0,0.00045,3]
[322361959,1712967049496,-1572.95179241,0.00045,30]
[322361960,1712967049506,-31843.0970173,0.00045,2]
[322361961,1712967049515,-4999.99,0.00045,120]
[322361962,1712967049525,-4470.98,0.00045,120]
[322361963,1712967049536,-2266.51646007,0.00045,60]
[322361964,1712967049545,-4589.83253269,0.00045,30]
[322361965,1712967049555,-165147.84037794,0.00045,120]
[322361966,1712967049564,-5000.0,0.00045,120]
[322361967,1712967049575,-8000.0,0.00045,120]
[322361968,1712967049584,-8000.0,0.00045,120]
[322361969,1712967049594,-27910.7477907,0.0004504,2]
[322361970,1712967049604,-86465.592697,0.00045043,2]
[322361971,1712967049613,-150.0,0.00045044,2]
[322361972,1712967049623,-10402.76313216,0.0004505,5]
[322361973,1712967049633,-310.0,0.0004505,2]
[322361974,1712967049642,-13208.26938225,0.0004505,4]
[322361975,1712967049652,-544.05162533,0.0004505,120]
[322361976,1712967049661,-170.49660245,0.0004505,7]